Workbook

Sheet Rent Roll
A1: Address | B1: HUD Numbers | G1: Rent | H1: Term | I1: Tech | J1: Septic | K1: Garbage | L1: Due date | M1: August | N1: September | O1: October | P1: November | Q1: December | R1: January '26 | S1: February '26 | T1: March '26 | U1: April '26 | V1: May '26 | W1: June '26 | X1: July '26
A2: 9690 Hildebrandt #1 | C2: EMPTY | I2: 10 | J2: 20 | K2: 15
A3: 9690 Hildebrandt #2 | C3: EMPTY | I3: 10 | J3: 20 | K3: 15
A4: 9690 Hildebrandt #3 | B4: TEX 525112 | C4: Ariel Salas | D4: 210-668-7364 | G4: 1300 | I4: 10 | J4: 20 | K4: 15 | L4: 1st | M4: 1300 | N4: 1300 | O4: 1300 | P4: 1300 | Q4: 1300
A5: 9690 Hildebrandt #4 | C5: Delilah Robinson | D5: 915-216-4808 | E5: Delilarobinson27@gmail.com | G5: 1000 | I5: 10 | J5: 20 | K5: 15 | L5: 1st | M5: 1000 | N5: 1000 | O5: 1000 | P5: 1000 | Q5: 1000
A6: 9690 Hildebrandt #5 | C6: Petra Uballe | D6: 210-765-6423 | E6: petrauballe17@gmail.com | G6: 1200 | I6: 10 | J6: 20 | K6: 15 | L6: 1st | M6: 1200 | N6: 1200 | O6: 1200 | P6: 1200 | Q6: 1200 | R6: 1100
A7: 9690 Hildebrandt #7 | B7: TEX 332288 | C7: Leo Neal | G7: 1000 | I7: 10 | J7: 20 | K7: 15 | L7: 1st | M7: 1000 | N7: 1000 | O7: 1000 | P7: 1000 | Q7: 1000
C8: EMPTY | I8: 10 | J8: 20 | K8: 15
C9: EMPTY | I9: 10 | J9: 20 | K9: 15
A10: 9690 Hildebrandt #9 | B10: TEX 227690 | C10: Krystal Martinez | D10: 210-762-2511 | G10: 1000 | I10: 10 | J10: 20 | K10: 15 | L10: 5th | M10: NA | N10: NA | O10: 1000 | P10: 1000 | Q10: 500
A11: 9720 Hildebrandt #1 | B11: TEX 391098 | C11: Stacie Arnson | D11: 210-847-6894 | E11: jazzedu@gmail.com | G11: 1400 | I11: 10 | J11: 20 | K11: 15 | L11: 15th | M11: 1400 | N11: 1400 | O11: 1400 | P11: 1400
A12: 9720 Hildebrandt #2 | C12: Available soon | I12: 10 | J12: 20 | K12: 15
A13: 9720 Hildebrandt #3 | C13: Amanda Villarreal | D13: 210-452-5388 | G13: 900 | I13: 10 | J13: 20 | K13: 15 | L13: 15th | M13: NA | N13: 900 | O13: 850 | P13: 450
A14: 9720 Hildebrandt #4 | B14: PFS 551148 | C14: Cipriano Gomez | G14: 1300 | I14: 10 | J14: 20 | K14: 15 | L14: 1st | M14: 1300 | N14: 1300 | O14: 1300 | P14: 1300 | Q14: 1300
A15: 9720 Hildebrandt #6 | C15: EMPTY | I15: 10 | J15: 20 | K15: 15
A16: 9720 Hildebrandt #7 | C16: Isabel Suarez | D16: 210-636-7724 | G16: 1400 | I16: 10 | J16: 20 | K16: 15 | L16: 15th | M16: 1400 | N16: 1400 | O16: 1400 | P16: 1500
A17: 9720 Hildebrandt #8 | C17: Juan Sanchez | D17: 726-233-9290 | E17: Timelesswelding@gmail.com | G17: 1300 | H17: $100 storage fee | I17: 10 | J17: 20 | K17: 15 | L17: 5th | M17: NA | N17: 1300 | O17: -1000 | P17: 1300
A18: 9720 Hildebrandt #9 | C18: Robert Goldbach | G18: 1100 | I18: 10 | J18: 20 | K18: 15 | L18: 15th | M18: -1100 | O18: 300 | P18: -1100 | R18: might not pay
A19: 9720 Hildebrandt #10 | C19: Brian Seals | D19: 210-909-7089 | G19: 450 | H19: Lot payment | I19: 10 | J19: 20 | K19: 15 | L19: 10th | M19: 450 | N19: 450 | O19: 450 | P19: 450 | Q19: 450
A20: 9720 Hildebrandt #11 | C20: EMPTY | I20: 10 | J20: 20 | K20: 15
A21: 9720 Hildebrandt #12 | C21: STORAGE | I21: 10 | J21: 20 | K21: 15
A22: 9720 Hildebrandt #13 | B22: TEX 011075 | C22: Camron Sutton | D22: 210-975-7591 | G22: 1100 | I22: 10 | J22: 20 | K22: 15 | L22: 15th | M22: 1070 | N22: 550 | O22: 550 | P22: -1240 | Q22: -1100
A23: 9720 Hildebrandt #14 | C23: EMPTY | I23: 10 | J23: 20 | K23: 15
A24: 9720 Hildebrandt #15 | C24: Reina Casas | D24: 915-497-7796 | E24: Reinacasas13@gmail.com | G24: 1000 | I24: 10 | J24: 20 | K24: 15 | L24: 22nd | M24: Na | N24: Na | O24: Na | P24: 1000
A25: 9720 Hildebrandt #16 | C25: Available | G25: 1000 | I25: 10 | J25: 20 | K25: 15 | L25: 10th | M25: NA | N25: NA | O25: 1000 | P25: NA
C26: EMPTY | I26: 10 | J26: 20 | K26: 15
C27: EMPTY | I27: 10 | J27: 20 | K27: 15
A28: 9673 S Foster Rd | B28: NTA 488383 | C28: Rocky & Amy | D28: 830-580-5550 | E28: angelmartinez277@gmail.com | G28: 1000 | I28: 10 | J28: 20 | K28: 15 | L28: 15th | M28: 1200 | N28: 1200 | O28: 300 | P28: 1000
A29: 9669 S Foster Rd | C29: Jesse Lopez | D29: 210-762-8336 | G29: 1300 | I29: 10 | J29: 20 | K29: 15 | L29: 1st | M29: 1300 | N29: 1300 | O29: 1300 | P29: 1300 | Q29: 1300
A30: 9665 S Foster Rd | B30: TEX 176926 | C30: Francis Quintanilla | D30: 210-504-4258 | E30: Fnq8569@gmail.com | G30: 1300 | I30: 10 | J30: 20 | K30: 15 | L30: 1st | M30: 1300 | N30: 1300 | O30: 1300 | P30: 1274 | Q30: 1300
A31: 9661 S Foster Rd | C31: Christopher Valle | D31: 210-762-8315 | G31: 1300 | I31: 10 | J31: 20 | K31: 15 | M31: NA | N31: 1300 | O31: 1300 | P31: 1300 | Q31: 1300
A32: 9657 S Foster Rd | B32: TEX 529834 | C32: Chris Price | D32: 210-842-4088 | E32: Mrsprice57@yahoo.com | G32: 1200 | I32: 10 | J32: 20 | K32: 15 | L32: 15th | M32: 1200 | N32: 1200 | O32: 1200 | P32: 600 | Q32: 600
C33: EMPTY | I33: 10 | J33: 20 | K33: 15
C34: EMPTY | I34: 10 | J34: 20 | K34: 15
C35: EMPTY | I35: 10 | J35: 20 | K35: 15
A36: 9641 S Foster Rd | B36: NTA 1991059 | C36: Jessica Whithey | D36: 210-809-7853 | E36: giggles_monkey04@yahoo.com | G36: 450 | H36: Lot payment | I36: 10 | J36: 20 | K36: 15 | L36: 1st | M36: 450 | N36: 450 | O36: 450 | P36: 450 | Q36: 450
A37: 9637 S Foster Rd | C37: Liliana Baker | G37: 1200 | I37: 10 | J37: 20 | K37: 15 | L37: 15th | M37: NA | N37: -1200 | O37: EVICTED | P37: NA | Q37: 1200
A38: 9617 S Foster Rd | C38: Rick Koenig | D38: 830-214-5604 | G38: 900 | I38: 10 | J38: 20 | K38: 15 | L38: 1st | M38: 900 | N38: 900 | O38: 600 | P38: 900
A39: 9625 S Foster Rd | C39: Fidelia Muniz | G39: 425 | I39: 10 | J39: 20 | K39: 15 | L39: 10th | M39: 425 | N39: 425 | O39: 425 | P39: 425 | Q39: 450
A40: 9629 S Foster Rd | C40: Johnny Barnes | D40: 210-589-3744 | E40: libbybarnes86@gmail.com | G40: 450 | H40: Lot payment | I40: 10 | J40: 20 | K40: 15 | L40: 1st | M40: 450 | N40: 450 | O40: 450 | P40: 450 | Q40: 250
A41: 9633 S Foster Rd | C41: Manuel Contreras | G41: 450 | H41: Lot payment | I41: 10 | J41: 20 | K41: 15 | L41: 15th | M41: 450 | N41: 450 | O41: 450 | P41: 450
A42: 9615 S Foster Rd | C42: Grace Chapa | D42: 726-239-1535 | G42: 900 | I42: 10 | J42: 20 | K42: 10 | L42: 15th | M42: 900 | N42: 900 | O42: 950 | P42: 950
C43: EMPTY | I43: 10 | J43: 20 | K43: 15
C44: EMPTY | I44: 10 | J44: 20 | K44: 15
A45: 9587 S Foster Rd | B45: TEX 299851 | C45: Julie Thomson | D45: 726-246-1761 | G45: 1400 | I45: 10 | J45: 20 | K45: 15 | L45: 15th | M45: 1400 | N45: 1400 | O45: 1000 | R45: might not pay
A46: 9581 S Foster Rd | C46: Xavier Flores | G46: 1000 | I46: 10 | J46: 20 | K46: 15 | L46: 15th | M46: 1000 | N46: 1000 | O46: 1000 | R46: might not pay
A47: GROSS INCOME | G47: =SUM(G4:G46) -> 29725 | I47: 350 | J47: 700 | K47: 525 | M47: =SUM(M4:M46) -> 19995 | N47: 22875 | O47: 22475 | P47: =SUM(P2:P46) -> 19659 | Q47: 12500
A48: Purple = Needs Unit Replacement/Reno
A49: Orange = Septic Replacement/Repair is needed | E49: Expenses
A50: RENT READY | F50: 3300 | G50: Taxes
A51: Leased- these are the lease agreement amounts | F51: 850 | G51: Lawn
A52: actually collected rents-true numbers | F52: NA | G52: Insurance
A53: charged back to the tenants | F53: 740 | G53: Garbage (billed back to tenants starting January 2026)
A54: still owes money | F54: 350 | G54: Tech (billed back to tenants starting January 2026)
F55: 2750 | G55: Water Bill(Billed back to tenants)
F56: 300/pump | G56: Septic | H56: only when tanks are emptied
E58: Total | F58: 4150
E60: Projected Gross income | F60: 29725
E61: Expenses | F61: -4150
E62: Projected net | F62: =SUM(F60:F61) -> 25575

Sheet Expenses
A1: Projected Expenses | C1: Oct | D1: Nov | E1: Dec
A2: Taxes | B2: -3300
A3: Lawn | B3: -850 | C3: contract ends June 2026
A5: Total | B5: =SUM(B2:B4) -> -4150
A7: Gross Income | B7: 29725
B8: =SUM(B2:B4) -> -4150
A9: Projected Net | B9: =SUM(B7:B8) -> 25575

Sheet Water Bill (Monthly)
A1: Address | F1: August | G1: September | H1: October | I1: November | J1: December | K1: January '26 | L1: February '26 | M1: March '26 | N1: April '26 | O1: May '26 | P1: June '26 | Q1: July '26
A2: 9690 Hildebrandt #1 | B2: EMPTY | F2: NA
A3: 9690 Hildebrandt #2 | B3: EMPTY | F3: NA
A4: 9690 Hildebrandt #3 | B4: Ariel Salas | C4: 210-668-7364 | F4: 62.79 | G4: 47.86 | H4: 43.6 | I4: 37.19
A5: 9690 Hildebrandt #4 | B5: Delilah Robinson | C5: 915-216-4808 | D5: Delilarobinson27@gmail.com | F5: 54.26 | G5: 49.99 | H5: 54.26 | I5: 60.65
A6: 9690 Hildebrandt #5 | B6: Petra Uballe | C6: 210-765-6423 | D6: petrauballe17@gmail.com | F6: 45.72 | G6: 43.79 | H6: 56.39 | I6: 43.6
A7: 9690 Hildebrandt #7 | B7: Leo Neal | F7: 116.11 | G7: 56.12 | H7: 43.59 | I7: 45.67
B8: EMPTY
B9: EMPTY
A10: 9690 Hildebrandt #9 | B10: Krystal Martinez | C10: 210-762-2511 | F10: NA | G10: NA | H10: 45.73 | I10: 54
A11: 9720 Hildebrandt #1 | B11: Stacie Arnson | C11: 210-847-6894 | D11: jazzedu@gmail.com | F11: 69.19 | G11: 64.92 | H11: 69.19 | I11: 54.25
A12: 9720 Hildebrandt #2 | B12: Available soon
A13: 9720 Hildebrandt #3 | B13: Amanda Villarreal | C13: 210-452-5388 | F13: NA | G13: 50 | H13: 94.79 | I13: 148.27
A14: 9720 Hildebrandt #4 | B14: Cipriano Gomez | F14: 77.72 | G14: 86.25 | H14: 84.12 | I14: 92.69
A15: 9720 Hildebrandt #6 | B15: EMPTY
A16: 9720 Hildebrandt #7 | B16: Isabel Suarez | C16: 210-636-7724 | F16: 28.66 | G16: 37.22 | H16: 52.05 | I16: 41.32
A17: 9720 Hildebrandt #8 | B17: Juan Sanchez | C17: 726-233-9290 | D17: Timelesswelding@gmail.com | F17: 45.72 | G17: 59.79 | H17: 47.86 | I17: 49.73
A18: 9720 Hildebrandt #9 | B18: Robert Goldbach | F18: 58.52 | G18: 56.39 | H18: 69.19 | I18: 65.73
A19: 9720 Hildebrandt #10 | B19: Brian Seals | C19: 210-909-7089 | F19: 30.79 | G19: 30.79 | H19: 32.93 | I19: 32.93
A20: 9720 Hildebrandt #11 | B20: EMPTY
A21: 9720 Hildebrandt #12 | B21: STORAGE
A22: 9720 Hildebrandt #13 | B22: Camron Sutton | C22: 210-975-7591 | F22: 71.32 | G22: 58.52 | H22: 62.79 | I22: 71.33
A23: 9720 Hildebrandt #14 | B23: EMPTY
A24: 9720 Hildebrandt #15 | B24: Available
A25: 9720 Hildebrandt #16
B26: EMPTY
B27: EMPTY
A28: 9673 S Foster Rd | B28: Rocky & Amy | C28: 830-580-5550 | D28: angelmartinez277@gmail.com | F28: 107.31 | G28: 137.18 | H28: 85.99 | I28: 83.45
A29: 9669 S Foster Rd | B29: Jesse Lopez | C29: 210-762-8336 | F29: 85.98 | G29: 51.86 | H29: 60.39 | I29: 56.15
A30: 9665 S Foster Rd | B30: Francis Quintanilla | C30: 210-504-4258 | D30: Fnq8569@gmail.com | F30: 90.25 | G30: 75.32 | H30: 58.26 | I30: 37.6
A31: 9661 S Foster Rd | B31: Christopher Valle | C31: 210-762-8315 | F31: 41.46 | G31: 45.46 | H31: 56.13 | I31: 51.87
A32: 9657 S Foster Rd | B32: Chris Price | C32: 210-842-4088 | D32: Mrsprice57@yahoo.com | F32: 83.85 | G32: 77.45 | H32: 68.93 | I32: 49.67
B33: EMPTY
B34: EMPTY
B35: EMPTY
A36: 9641 S Foster Rd | B36: Jessica Whithey | C36: 210-809-7853 | D36: giggles_monkey04@yahoo.com | F36: 88.12 | G36: 92.38 | H36: 90.25 | I36: 98.78
A37: 9637 S Foster Rd
A38: 9617 S Foster Rd | B38: Ricky Koenig | C38: 830-214-5604 | F38: 73.19 | G38: 85.89 | H38: 77.46 | I38: 73.2
A39: 9625 S Foster Rd | B39: Fidelia Muniz | F39: 66.79 | G39: 64.65 | H39: 64.66 | I39: 62.54
A40: 9629 S Foster Rd | B40: Johnny Barnes | C40: 210-589-3744 | D40: libbybarnes86@gmail.com | F40: 83.85 | G40: 66.79 | H40: 117.98 | I40: 63
A41: 9633 S Foster Rd | B41: Manuel Contreras | F41: 47.59 | G41: 34.79 | H41: 54 | I41: 53.99
A42: 9615 S Foster Rd | B42: Grace Chapa | C42: 726-239-1535 | F42: 34.79 | G42: 36.93 | H42: 38.37 | I42: 35.07
B43: EMPTY
B44: EMPTY
A45: 9587 S Foster Rd | B45: Julie Thomson | C45: 726-246-1761 | F45: 35.45 | G45: 34.86 | H45: 56.05 | I45: 74.5
A46: 9581 S Foster Rd | B46: Xavier Flores | F46: 41.85 | G46: 44.34 | H46: 56.05 | I46: 74.5
A47: TOTAL | F47: =SUM(F4:F46) -> 1541.28 | G47: =SUM(G2:H46) -> 3130.55 | H47: =SUM(H4:H46) -> 1641.01 | I47: 1611.68
A48: Unpaid by tenants | F48: 0 | G48: 0 | H48: 0 | I48: 0
F49: =SUM(F47:F48) -> 1541.28 | G49: 3130.55 | H49: 1641.01 | I49: 1611.68

Sheet T12
A1: Income | C1: August | D1: September | E1: October | F1: November | G1: December | H1: January | I1: February | J1: March | K1: April | L1: May | M1: June | N1: July | O1: Total
A2: Rental Income | C2: 19995 | D2: 22875 | E2: 22475 | F2: 19659 | G2: 12500
B3: Tech Services fee | C3: 290 | D3: 290 | E3: 290 | F3: 290 | G3: 290
B4: Total | C4: =SUM(C2:C3) -> 20285 | D4: 23165 | E4: 22765 | F4: 19949 | G4: 12790
A6: Expense
B7: Lawn | C7: -850 | D7: -850 | E7: -850 | F7: -850 | G7: -850
B8: Garbage | C8: -740 | D8: -740 | E8: -740 | F8: -740 | G8: -740
B9: Property Taxes | C9: -3300 | D9: -3300 | E9: -3300 | F9: -3300 | G9: -3300
B10: Unpaid Tech (tenant)
B11: Unpaid water (tenant)
B12: Unpaid Garbage (tenant)
A13: Total | C13: =SUM(C7:C12) -> -4890 | D13: -4890 | E13: -4890 | F13: -4890 | G13: -4890
A15: Net Income | C15: =C4+C13 -> 15395 | D15: 18275 | E15: 17875 | F15: 15059 | G15: 7900
